[Event "EYTCC U18 Girls 2019"]
[Site "Pardubice"]
[Date "2019.07.14"]
[Round "4.32"]
[White "Ciolacu, Alessia-Mihaela"]
[Black "Sowa, Wiktoria"]
[Result "1-0"]
[ECO "A48"]
[WhiteElo "2199"]
[BlackElo "2108"]
[Annotator "NA"]
[PlyCount "85"]
[EventDate "2019.07.11"]
[EventType "swiss"]
[EventCountry "CZE"]
[SourceTitle "playchess.com"]
[Source "ChessBase"]
[SourceQuality "1"]
[WhiteTeam "Romania"]
[BlackTeam "Poland"]
[WhiteTeamCountry "ROU"]
[BlackTeamCountry "POL"]
[TimeControl "40/5400+30:1800+30"]

1. d4 {[%emt 0:00:00]} Nf6 {[%emt 0:00:00]} 2. Nf3 {[%emt 0:00:00]} g6 {[%emt 0:00:00]} 3. Nbd2 {[%emt 0:00:00]} d5 {[%emt 0:00:42]} 4. e3 {[%emt 0:00:00]} Bg7 {[%emt 0:00:46]} 5. b4 {[%emt 0:00:08]} O-O {[%emt 0:02:01]} 6. Bb2 {[%emt 0:00:17]} Qd6 {[%emt 0:07:28]} 7. a3 {[%emt 0:07:55]} Ne4 {[%emt 0:05:55]} 8. Nxe4 {[%emt 0:09:33]} dxe4 {[%emt 0:00:25]} 9. Nd2 {[%emt 0:05:16]} f5 {[%emt 0:03:10]} 10. c4 {[%emt 0:10:46]} a5 {[%emt 0:12:59]} 11. c5 {[%emt 0:10:42]} Qf6 {[%emt 0:02:39]} 12. Bc4+ {[%emt 0:03:24]} Kh8 {[%emt 0:05:22]} 13. Rb1 {[%emt 0:05:20]} Nd7 {[%emt 0:11:01]} 14. h4 {[%emt 0:03:03]} h6 {[%emt 0:05:15]} 15. Kf1 {[%emt 0:18:17]} e5 {[%emt 0:10:55]} 16. d5 {[%emt 0:03:28]} Qe7 {[%emt 0:04:01]} 17. Kg1 {[%emt 0:06:44]} Nf6 {[%emt 0:02:21]} 18. Nf1 {[%emt 0:02:00]} Rd8 {[%emt 0:05:07]} 19. Qb3 {[%emt 0:01:58]} axb4 {[%emt 0:05:17]} 20. axb4 {[%emt 0:00:27]} Bd7 {[%emt 0:00:40]} 21. Qc3 {[%emt 0:03:04]} Nh5 {[%emt 0:04:50]} 22. Nd2 {[%emt 0:01:42]} f4 {[%emt 0:04:38]} 23. Re1 {[%emt 0:02:37]} Bf5 {[%emt 0:01:05]} 24. Qb3 {[%emt 0:00:53]} Nf6 {[%emt 0:00:42]} 25. exf4 {[%emt 0:01:59]} exf4 {[%emt 0:00:13]} 26. Bd3 {[%emt 0:00:31]} e3 {[%emt 0:04:08]} 27. fxe3 {[%emt 0:00:32]} Bxd3 {[%emt 0:00:36]} 28. Bxf6 {[%emt 0:00:31]} Qxf6 {[%emt 0:00:24]} 29. Qxd3 {[%emt 0:00:06]} fxe3 {[%emt 0:00:24]} 30. Qxe3 {[%emt 0:00:29]} Rxd5 {[%emt 0:00:59]} 31. Nf3 {[%emt 0:00:47]} Rad8 {[%emt 0:00:42]} 32. Kh2 {[%emt 0:00:25]} Rd3 {[%emt 0:00:14]} 33. Qe4 {[%emt 0:00:07]} b6 {[%emt 0:00:31]} 34. Rhf1 {[%emt 0:00:27]} Kg8 {[%emt 0:00:52]} 35. Ng5 {[%emt 0:00:32]} Qd4 {[%emt 0:00:27]} 36. Qe6+ {[%emt 0:00:13]} Kh8 {[%emt 0:00:13]} 37. Nf7+ {[%emt 0:00:33]} Kh7 {[%emt 0:00:06]} 38. Re4 {[%emt 0:00:06]} Qb2 {[%emt 0:01:18]} 39. Rg4 {[%emt 0:00:30]} g5 {[%emt 0:00:32]} 40. hxg5 {[%emt 0:00:47]} h5 {[%emt 0:00:31]} 41. g6+ {[%emt 0:30:47]} Kg8 {[%emt 0:30:12]} 42. Nh6+ {[%emt 0:00:14]} Kh8 {[%emt 0:00:06]} 43. Qg8+ {[%emt 0:00:06]} 1-0

[Event "EYTCC U18 Girls 2019"]
[Site "Pardubice"]
[Date "2019.07.14"]
[Round "4.33"]
[White "Stroganova, Karina"]
[Black "Katkov, Michelle"]
[Result "0-1"]
[ECO "A46"]
[WhiteElo "1875"]
[BlackElo "2129"]
[Annotator "NA"]
[PlyCount "100"]
[EventDate "2019.07.11"]
[EventType "swiss"]
[EventCountry "CZE"]
[SourceTitle "playchess.com"]
[Source "ChessBase"]
[SourceQuality "1"]
[WhiteTeam "Russia"]
[BlackTeam "Israel"]
[WhiteTeamCountry "RUS"]
[BlackTeamCountry "ISR"]
[TimeControl "40/5400+30:1800+30"]

1. d4 {[%emt 0:00:00]} Nf6 {[%emt 0:00:00]} 2. Nf3 {[%emt 0:00:44]} e6 {[%emt 0:00:06]} 3. Bf4 {[%emt 0:00:26]} c5 {[%emt 0:01:00]} 4. e3 {[%emt 0:00:34]} d5 {[%emt 0:00:21]} 5. c3 {[%emt 0:00:58]} Bd6 {[%emt 0:00:12]} 6. Bb5+ {[%emt 0:00:51]} Nc6 {[%emt 0:01:56]} 7. Bxc6+ {[%emt 0:01:14]} bxc6 {[%emt 0:00:07]} 8. Bxd6 {[%emt 0:00:44]} Qxd6 {[%emt 0:00:06]} 9. Qa4 {[%emt 0:00:18]} O-O {[%emt 0:09:47]} 10. Nbd2 {[%emt 0:00:52]} Bd7 {[%emt 0:06:41]} 11. Qa3 {[%emt 0:06:15]} Qb8 {[%emt 0:08:21]} 12. dxc5 {[%emt 0:16:10]} Qb5 {[%emt 0:07:29]} 13. Ne5 {[%emt 0:01:25]} Rfb8 {[%emt 0:09:55]} 14. b3 {[%emt 0:01:45]} a5 {[%emt 0:04:10]} 15. c4 {[%emt 0:04:09]} Qb7 {[%emt 0:08:16]} 16. O-O {[%emt 0:04:35]} Qc7 {[%emt 0:04:20]} 17. Qb2 {[%emt 0:16:37]} Ne8 {[%emt 0:05:41]} 18. Rfd1 {[%emt 0:05:43]} f6 {[%emt 0:02:02]} 19. Nxd7 {[%emt 0:01:44]} Qxd7 {[%emt 0:00:06]} 20. cxd5 {[%emt 0:00:11]} cxd5 {[%emt 0:01:51]} 21. e4 {[%emt 0:02:30]} dxe4 {[%emt 0:06:00]} 22. Nxe4 {[%emt 0:00:57]} Qc6 {[%emt 0:00:26]} 23. Qe2 {[%emt 0:01:30]} a4 {[%emt 0:08:42]} 24. Nd6 {[%emt 0:03:20]} Nc7 {[%emt 0:01:31]} 25. Qc4 {[%emt 0:01:39]} Nd5 {[%emt 0:01:25]} 26. Re1 {[%emt 0:03:34]} Rb4 {[%emt 0:01:56]} 27. Qc2 {[%emt 0:01:39]} Nf4 {[%emt 0:05:46]} 28. f3 {[%emt 0:01:52]} Ra5 {[%emt 0:02:22]} 29. Ne4 {[%emt 0:04:49]} f5 {[%emt 0:01:18]} 30. Qd2 {[%emt 0:00:32]} Nd5 {[%emt 0:00:08]} 31. a3 {[%emt 0:00:38]} Rbb5 {[%emt 0:01:47]} 32. b4 {[%emt 0:00:18]} fxe4 {[%emt 0:00:35]} 33. fxe4 {[%emt 0:02:08]} Nxb4 {[%emt 0:01:04]} 34. Qd8+ {[%emt 0:02:15]} Kf7 {[%emt 0:00:04]} 35. Rf1+ {[%emt 0:00:53]} Kg6 {[%emt 0:00:06]} 36. axb4 {[%emt 0:00:23]} Ra7 {[%emt 0:00:55]} 37. Qd4 {[%emt 0:01:03]} h6 {[%emt 0:00:55]} 38. Ra3 {[%emt 0:03:42]} Kh7 {[%emt 0:00:24]} 39. e5 {[%emt 0:04:50]} Rb8 {[%emt 0:00:52]} 40. Qd3+ {[%emt 0:02:17]} Kh8 {[%emt 0:00:35]} 41. Qg6 {[%emt 0:31:29]} Qd5 {[%emt 0:05:33]} 42. Raf3 {[%emt 0:00:00]} Raa8 {[%emt 0:01:03]} 43. Rf7 {[%emt 0:00:00]} Qxe5 {[%emt 0:01:26]} 44. Qc2 {[%emt 0:00:25]} a3 {[%emt 0:02:27]} 45. Qa2 {[%emt 0:02:16]} Rxb4 {[%emt 0:02:01]} 46. Rf8+ {[%emt 0:00:50]} Rxf8 {[%emt 0:00:05]} 47. Rxf8+ {[%emt 0:00:05]} Kh7 {[%emt 0:00:04]} 48. Qc2+ {[%emt 0:00:27]} Re4 {[%emt 0:02:00]} 49. c6 {[%emt 0:00:44]} a2 {[%emt 0:00:52]} 50. Ra8 {[%emt 0:00:39]} a1=Q+ {[%emt 0:00:30]} 0-1

[Event "EYTCC U18 Girls 2019"]
[Site "Pardubice"]
[Date "2019.07.14"]
[Round "4.34"]
[White "Levitan, Ronit"]
[Black "Beliakova, Ilona"]
[Result "1-0"]
[ECO "C43"]
[WhiteElo "2022"]
[BlackElo "1759"]
[Annotator "NA"]
[PlyCount "89"]
[EventDate "2019.07.11"]
[EventType "swiss"]
[EventCountry "CZE"]
[SourceTitle "playchess.com"]
[Source "ChessBase"]
[SourceQuality "1"]
[WhiteTeam "Israel"]
[BlackTeam "Russia"]
[WhiteTeamCountry "ISR"]
[BlackTeamCountry "RUS"]
[TimeControl "40/5400+30:1800+30"]

1. e4 {[%emt 0:00:00]} e5 {[%emt 0:00:00]} 2. Nf3 {[%emt 0:00:00]} Nf6 {[%emt 0:00:00]} 3. d4 {[%emt 0:00:19]} Nxe4 {[%emt 0:00:00]} 4. Bd3 {[%emt 0:00:27]} d5 {[%emt 0:00:14]} 5. dxe5 {[%emt 0:00:32]} Nc5 {[%emt 0:08:04]} 6. Be2 {[%emt 0:00:41]} Be7 {[%emt 0:02:03]} 7. Be3 {[%emt 0:00:50]} O-O {[%emt 0:05:18]} 8. O-O {[%emt 0:00:15]} b6 {[%emt 0:02:39]} 9. Nc3 {[%emt 0:09:32]} Bb7 {[%emt 0:01:01]} 10. Nd4 {[%emt 0:03:11]} Nc6 {[%emt 0:11:50]} 11. Nf5 {[%emt 0:12:59]} Qd7 {[%emt 0:08:04]} 12. Bg4 {[%emt 0:02:34]} Ne6 {[%emt 0:02:14]} 13. Nxd5 {[%emt 0:01:10]} Rad8 {[%emt 0:02:02]} 14. Ndxe7+ {[%emt 0:01:15]} Nxe7 {[%emt 0:00:32]} 15. Qxd7 {[%emt 0:00:29]} Rxd7 {[%emt 0:00:17]} 16. Nxe7+ {[%emt 0:00:13]} Rxe7 {[%emt 0:00:05]} 17. f4 {[%emt 0:01:52]} c5 {[%emt 0:02:42]} 18. c3 {[%emt 0:09:20]} Nc7 {[%emt 0:01:46]} 19. c4 {[%emt 0:00:30]} f6 {[%emt 0:02:08]} 20. Bd2 {[%emt 0:16:40]} fxe5 {[%emt 0:12:04]} 21. fxe5 {[%emt 0:00:18]} Rxf1+ {[%emt 0:16:41]} 22. Rxf1 {[%emt 0:00:20]} Ne6 {[%emt 0:04:40]} 23. Re1 {[%emt 0:02:57]} a5 {[%emt 0:02:09]} 24. Kf2 {[%emt 0:03:01]} h6 {[%emt 0:01:10]} 25. Kg3 {[%emt 0:02:21]} Ba6 {[%emt 0:03:25]} 26. b3 {[%emt 0:00:54]} a4 {[%emt 0:00:16]} 27. Bc3 {[%emt 0:02:27]} g5 {[%emt 0:02:48]} 28. Rd1 {[%emt 0:04:31]} Nd4 {[%emt 0:03:13]} 29. Bxd4 {[%emt 0:07:07]} cxd4 {[%emt 0:00:04]} 30. e6 {[%emt 0:00:48]} axb3 {[%emt 0:00:29]} 31. axb3 {[%emt 0:00:12]} h5 {[%emt 0:00:24]} 32. Bf5 {[%emt 0:02:05]} Bc8 {[%emt 0:01:01]} 33. Rxd4 {[%emt 0:00:19]} Kg7 {[%emt 0:01:12]} 34. Rd7 {[%emt 0:02:54]} Kf6 {[%emt 0:01:27]} 35. Rxe7 {[%emt 0:01:40]} Kxe7 {[%emt 0:00:09]} 36. h4 {[%emt 0:01:24]} gxh4+ {[%emt 0:03:31]} 37. Kxh4 {[%emt 0:00:06]} Bb7 {[%emt 0:00:10]} 38. Bh3 {[%emt 0:01:05]} Bc6 {[%emt 0:01:21]} 39. Kxh5 {[%emt 0:00:31]} b5 {[%emt 0:00:06]} 40. cxb5 {[%emt 0:01:09]} Bxb5 {[%emt 0:00:07]} 41. Bf5 {[%emt 0:30:49]} Kf6 {[%emt 0:30:40]} 42. g4 {[%emt 0:00:14]} Be8+ {[%emt 0:00:27]} 43. Kh4 {[%emt 0:00:23]} Bc6 {[%emt 0:00:17]} 44. Kg3 {[%emt 0:00:08]} Bd5 {[%emt 0:00:08]} 45. b4 {[%emt 0:00:14]} 1-0

[Event "EYTCC U18 Girls 2019"]
[Site "Pardubice"]
[Date "2019.07.14"]
[Round "4.35"]
[White "Kuhar, Larisa"]
[Black "Kopcova, Ludmila"]
[Result "0-1"]
[ECO "C67"]
[WhiteElo "1894"]
[BlackElo "1980"]
[Annotator "NA"]
[PlyCount "112"]
[EventDate "2019.07.11"]
[EventType "swiss"]
[EventCountry "CZE"]
[SourceTitle "playchess.com"]
[Source "ChessBase"]
[SourceQuality "1"]
[WhiteTeam "Slovenia"]
[BlackTeam "Czech Republic"]
[WhiteTeamCountry "SLO"]
[BlackTeamCountry "CZE"]
[TimeControl "40/5400+30:1800+30"]

1. e4 {[%emt 0:00:00]} e5 {[%emt 0:00:00]} 2. Nf3 {[%emt 0:00:00]} Nc6 {[%emt 0:00:00]} 3. Bb5 {[%emt 0:00:00]} Nf6 {[%emt 0:00:07]} 4. O-O {[%emt 0:01:47]} Nxe4 {[%emt 0:00:22]} 5. d4 {[%emt 0:00:23]} Nd6 {[%emt 0:00:24]} 6. Bxc6 {[%emt 0:00:22]} dxc6 {[%emt 0:00:09]} 7. dxe5 {[%emt 0:00:07]} Nf5 {[%emt 0:00:09]} 8. Qxd8+ {[%emt 0:00:23]} Kxd8 {[%emt 0:00:05]} 9. Nc3 {[%emt 0:00:59]} h6 {[%emt 0:00:26]} 10. h3 {[%emt 0:02:00]} Bd7 {[%emt 0:01:20]} 11. b3 {[%emt 0:02:44]} Kc8 {[%emt 0:02:20]} 12. Bb2 {[%emt 0:01:46]} b6 {[%emt 0:01:23]} 13. Rad1 {[%emt 0:04:08]} Ne7 {[%emt 0:05:20]} 14. Ne4 {[%emt 0:14:51]} c5 {[%emt 0:06:38]} 15. Rfe1 {[%emt 0:10:06]} Be6 {[%emt 0:05:04]} 16. Nh4 {[%emt 0:15:37]} g5 {[%emt 0:09:22]} 17. Nf3 {[%emt 0:00:24]} Nc6 {[%emt 0:06:17]} 18. Rd2 {[%emt 0:08:08]} c4 {[%emt 0:12:22]} 19. Nd4 {[%emt 0:03:31]} Nxd4 {[%emt 0:03:06]} 20. Rxd4 {[%emt 0:00:51]} cxb3 {[%emt 0:00:21]} 21. cxb3 {[%emt 0:00:33]} Bg7 {[%emt 0:07:04]} 22. Rd2 {[%emt 0:05:30]} Rd8 {[%emt 0:03:23]} 23. Rc2 {[%emt 0:02:12]} Kb7 {[%emt 0:03:23]} 24. Ng3 {[%emt 0:03:35]} a5 {[%emt 0:04:04]} 25. Nh5 {[%emt 0:05:05]} Bf8 {[%emt 0:00:37]} 26. Rec1 {[%emt 0:00:32]} Bc5 {[%emt 0:02:02]} 27. Nf6 {[%emt 0:02:18]} Bf5 {[%emt 0:02:26]} 28. Re2 {[%emt 0:06:53]} a4 {[%emt 0:01:37]} 29. Bc3 {[%emt 0:04:49]} Ba3 {[%emt 0:08:20]} 30. Rce1 {[%emt 0:00:29]} Rd3 {[%emt 0:02:10]} 31. Re3 {[%emt 0:01:46]} Rxe3 {[%emt 0:05:15]} 32. Rxe3 {[%emt 0:00:09]} axb3 {[%emt 0:00:33]} 33. axb3 {[%emt 0:00:07]} Bc5 {[%emt 0:00:41]} 34. Re2 {[%emt 0:00:18]} Ra3 {[%emt 0:01:17]} 35. g4 {[%emt 0:01:57]} Be6 {[%emt 0:01:29]} 36. Ne4 {[%emt 0:02:41]} Bf8 {[%emt 0:02:01]} 37. b4 {[%emt 0:00:47]} Bd5 {[%emt 0:03:00]} 38. Nf6 {[%emt 0:00:35]} Bc6 {[%emt 0:01:20]} 39. Be1 {[%emt 0:00:32]} Rxh3 {[%emt 0:01:00]} 40. Ne4 {[%emt 0:00:21]} Rb3 {[%emt 0:01:11]} 41. Kg2 {[%emt 0:15:35]} Bxb4 {[%emt 0:01:55]} 42. f3 {[%emt 0:02:20]} Bxe1 {[%emt 0:05:23]} 43. Rxe1 {[%emt 0:00:07]} Rb2+ {[%emt 0:02:09]} 44. Kg3 {[%emt 0:00:24]} b5 {[%emt 0:02:52]} 45. Re3 {[%emt 0:02:12]} Bd5 {[%emt 0:07:49]} 46. Nf6 {[%emt 0:07:13]} Be6 {[%emt 0:00:13]} 47. Re1 {[%emt 0:02:09]} b4 {[%emt 0:01:30]} 48. Rh1 {[%emt 0:02:50]} Rc2 {[%emt 0:01:27]} 49. Ne4 {[%emt 0:01:12]} b3 {[%emt 0:01:05]} 50. Nf2 {[%emt 0:00:43]} Bc4 {[%emt 0:04:24]} 51. Rb1 {[%emt 0:00:27]} c5 {[%emt 0:02:11]} 52. Nd1 {[%emt 0:00:49]} Be6 {[%emt 0:00:28]} 53. Ne3 {[%emt 0:00:37]} Re2 {[%emt 0:00:47]} 54. Nf5 {[%emt 0:00:32]} c4 {[%emt 0:01:31]} 55. Nd4 {[%emt 0:00:28]} Rd2 {[%emt 0:00:19]} 56. Nb5 {[%emt 0:00:24]} Kb6 {[%emt 0:00:55]} 0-1

[Event "EYTCC U18 Girls 2019"]
[Site "Pardubice"]
[Date "2019.07.14"]
[Round "4.36"]
[White "Gresova, Zuzana"]
[Black "Kralj, Nika"]
[Result "1-0"]
[ECO "E91"]
[WhiteElo "1919"]
[BlackElo "1807"]
[Annotator "NA"]
[PlyCount "55"]
[EventDate "2019.07.11"]
[EventType "swiss"]
[EventCountry "CZE"]
[SourceTitle "playchess.com"]
[Source "ChessBase"]
[SourceQuality "1"]
[WhiteTeam "Czech Republic"]
[BlackTeam "Slovenia"]
[WhiteTeamCountry "CZE"]
[BlackTeamCountry "SLO"]
[TimeControl "40/5400+30:1800+30"]

1. d4 {[%emt 0:00:00]} Nf6 {[%emt 0:00:00]} 2. c4 {[%emt 0:00:00]} g6 {[%emt 0:00:00]} 3. Nc3 {[%emt 0:00:00]} Bg7 {[%emt 0:00:00]} 4. e4 {[%emt 0:00:40]} d6 5. Nf3 {[%emt 0:00:53]} O-O {[%emt 0:00:19]} 6. Be2 {[%emt 0:00:47]} Nc6 {[%emt 0:01:40]} 7. Bg5 {[%emt 0:05:12]} h6 {[%emt 0:02:46]} 8. Bh4 {[%emt 0:03:05]} Nh5 {[%emt 0:01:17]} 9. d5 {[%emt 0:05:00]} Ne5 {[%emt 0:00:22]} 10. Nxe5 {[%emt 0:04:42]} Bxe5 {[%emt 0:00:18]} 11. Bxh5 {[%emt 0:01:42]} gxh5 {[%emt 0:00:13]} 12. Qxh5 {[%emt 0:00:59]} Kh7 {[%emt 0:01:28]} 13. O-O {[%emt 0:05:09]} f5 {[%emt 0:07:20]} 14. f4 {[%emt 0:07:58]} Bg7 {[%emt 0:06:16]} 15. Qe2 {[%emt 0:03:33]} Bf6 {[%emt 0:05:45]} 16. Bxf6 {[%emt 0:01:36]} Rxf6 {[%emt 0:01:17]} 17. Rae1 {[%emt 0:02:29]} Rf7 {[%emt 0:01:20]} 18. Kh1 {[%emt 0:03:45]} c6 {[%emt 0:09:01]} 19. e5 {[%emt 0:02:39]} Rg7 {[%emt 0:02:07]} 20. e6 {[%emt 0:04:05]} Qc7 {[%emt 0:03:31]} 21. Qh5 {[%emt 0:01:21]} b6 {[%emt 0:01:15]} 22. Qxf5+ {[%emt 0:01:54]} Kg8 {[%emt 0:00:05]} 23. Qh5 {[%emt 0:02:06]} Kh7 {[%emt 0:00:10]} 24. f5 {[%emt 0:00:54]} Qd8 {[%emt 0:01:00]} 25. Re3 {[%emt 0:05:00]} Qf8 {[%emt 0:00:09]} 26. f6 {[%emt 0:02:46]} exf6 {[%emt 0:00:03]} 27. Ne4 {[%emt 0:01:18]} Rg6 {[%emt 0:00:31]} 28. Ref3 {[%emt 0:00:53]} 1-0

[Event "EYTCC U18 Girls 2019"]
[Site "Pardubice"]
[Date "2019.07.14"]
[Round "4.37"]
[White "Urh, Zala"]
[Black "Zeliantsova, Kseniya"]
[Result "1-0"]
[ECO "A41"]
[WhiteElo "2072"]
[BlackElo "1907"]
[Annotator "NA"]
[PlyCount "81"]
[EventDate "2019.07.11"]
[EventType "swiss"]
[EventCountry "CZE"]
[SourceTitle "playchess.com"]
[Source "ChessBase"]
[SourceQuality "1"]
[WhiteTeam "Slovenia"]
[BlackTeam "Belarus"]
[WhiteTeamCountry "SLO"]
[BlackTeamCountry "BLR"]
[TimeControl "40/5400+30:1800+30"]

1. d4 {[%emt 0:00:00]} g6 {[%emt 0:00:00]} 2. c4 {[%emt 0:00:19]} Bg7 {[%emt 0:00:00]} 3. Nc3 {[%emt 0:01:28]} d6 {[%emt 0:00:00]} 4. Nf3 {[%emt 0:03:12]} Nd7 {[%emt 0:00:02]} 5. e4 {[%emt 0:01:20]} e5 {[%emt 0:00:19]} 6. Be3 {[%emt 0:01:41]} Ne7 {[%emt 0:00:53]} 7. dxe5 {[%emt 0:04:41]} Nxe5 {[%emt 0:05:38]} 8. Nxe5 {[%emt 0:05:22]} Bxe5 {[%emt 0:00:22]} 9. Qd2 {[%emt 0:02:34]} Be6 {[%emt 0:12:28]} 10. Be2 {[%emt 0:03:07]} a6 {[%emt 0:08:37]} 11. g4 {[%emt 0:07:46]} Qd7 {[%emt 0:00:34]} 12. f4 {[%emt 0:01:41]} Bxc3 {[%emt 0:03:41]} 13. Qxc3 {[%emt 0:00:05]} f6 {[%emt 0:00:12]} 14. f5 {[%emt 0:06:05]} Bf7 {[%emt 0:05:40]} 15. Qxf6 {[%emt 0:00:45]} Rf8 {[%emt 0:00:48]} 16. Bg5 {[%emt 0:05:21]} Ng8 {[%emt 0:14:48]} 17. Qg7 {[%emt 0:03:01]} Qc6 {[%emt 0:08:28]} 18. O-O {[%emt 0:09:03]} gxf5 {[%emt 0:05:35]} 19. Rxf5 {[%emt 0:07:03]} d5 {[%emt 0:14:36]} 20. exd5 {[%emt 0:02:10]} Qg6 {[%emt 0:00:31]} 21. Qxg6 {[%emt 0:02:29]} Bxg6 {[%emt 0:00:42]} 22. Rxf8+ {[%emt 0:00:47]} Kxf8 {[%emt 0:00:05]} 23. Rf1+ {[%emt 0:00:07]} Kg7 {[%emt 0:00:08]} 24. Bd2 {[%emt 0:00:32]} Ne7 {[%emt 0:01:37]} 25. Bc3+ {[%emt 0:00:12]} Kg8 {[%emt 0:00:05]} 26. h4 {[%emt 0:00:37]} Re8 {[%emt 0:01:51]} 27. Re1 {[%emt 0:01:58]} Nc8 {[%emt 0:07:00]} 28. Bf3 {[%emt 0:01:47]} Rf8 {[%emt 0:01:30]} 29. Kg2 {[%emt 0:00:08]} Nb6 {[%emt 0:01:11]} 30. b3 {[%emt 0:00:25]} Rd8 {[%emt 0:02:17]} 31. h5 {[%emt 0:00:33]} Bf7 {[%emt 0:00:07]} 32. g5 {[%emt 0:00:37]} Nc8 {[%emt 0:03:24]} 33. Bf6 {[%emt 0:03:12]} Rf8 {[%emt 0:00:11]} 34. Bg4 {[%emt 0:00:44]} Nd6 {[%emt 0:00:50]} 35. Kg3 {[%emt 0:00:19]} a5 {[%emt 0:01:14]} 36. Re2 {[%emt 0:00:30]} b6 {[%emt 0:01:09]} 37. Re7 {[%emt 0:01:52]} Ne8 {[%emt 0:01:17]} 38. Be5 {[%emt 0:00:28]} b5 {[%emt 0:00:29]} 39. Kh4 {[%emt 0:02:08]} bxc4 {[%emt 0:00:17]} 40. bxc4 {[%emt 0:00:01]} a4 {[%emt 0:00:38]} 41. a3 {[%emt 0:30:39]} 1-0

[Event "EYTCC U18 Girls 2019"]
[Site "Pardubice"]
[Date "2019.07.14"]
[Round "4.38"]
[White "Kuzich, Aryna"]
[Black "Hercog, Nusa"]
[Result "1/2-1/2"]
[ECO "B48"]
[WhiteElo "1902"]
[BlackElo "2053"]
[Annotator "NA"]
[PlyCount "176"]
[EventDate "2019.07.11"]
[EventType "swiss"]
[EventCountry "CZE"]
[SourceTitle "playchess.com"]
[Source "ChessBase"]
[SourceQuality "1"]
[WhiteTeam "Belarus"]
[BlackTeam "Slovenia"]
[WhiteTeamCountry "BLR"]
[BlackTeamCountry "SLO"]
[TimeControl "40/5400+30:1800+30"]

1. e4 {[%emt 0:00:00]} c5 {[%emt 0:00:00]} 2. Nf3 {[%emt 0:00:00]} Nc6 {[%emt 0:00:00]} 3. d4 {[%emt 0:00:00]} cxd4 {[%emt 0:00:00]} 4. Nxd4 {[%emt 0:00:00]} e6 {[%emt 0:00:00]} 5. Nc3 {[%emt 0:00:18]} Qc7 {[%emt 0:00:10]} 6. Be3 {[%emt 0:00:25]} a6 {[%emt 0:00:11]} 7. Qf3 {[%emt 0:00:33]} Nf6 {[%emt 0:01:36]} 8. O-O-O {[%emt 0:01:29]} Ne5 {[%emt 0:06:51]} 9. Qg3 {[%emt 0:00:51]} d6 {[%emt 0:16:13]} 10. f4 {[%emt 0:03:42]} Neg4 {[%emt 0:06:56]} 11. Bg1 {[%emt 0:13:32]} Bd7 {[%emt 0:15:11]} 12. h3 {[%emt 0:12:11]} Nh6 {[%emt 0:00:09]} 13. e5 {[%emt 0:10:08]} dxe5 {[%emt 0:02:51]} 14. fxe5 {[%emt 0:00:07]} Rc8 {[%emt 0:02:47]} 15. Qe3 {[%emt 0:16:29]} Nd5 {[%emt 0:08:26]} 16. Nxd5 {[%emt 0:00:38]} exd5 {[%emt 0:00:06]} 17. Bd3 {[%emt 0:11:04]} Be6 {[%emt 0:01:28]} 18. g4 {[%emt 0:08:24]} Bc5 {[%emt 0:03:05]} 19. Qf4 {[%emt 0:01:03]} Bxd4 {[%emt 0:08:23]} 20. Bxd4 {[%emt 0:00:07]} Ng8 {[%emt 0:04:01]} 21. Qg5 {[%emt 0:01:36]} g6 {[%emt 0:00:29]} 22. Kb1 {[%emt 0:07:18]} b5 {[%emt 0:01:19]} 23. h4 {[%emt 0:01:35]} h5 {[%emt 0:07:29]} 24. gxh5 {[%emt 0:00:35]} Rxh5 {[%emt 0:00:06]} 25. Qd2 {[%emt 0:00:57]} Ne7 {[%emt 0:01:12]} 26. Be2 {[%emt 0:03:59]} Rh7 {[%emt 0:01:00]} 27. c3 {[%emt 0:00:24]} Kd7 {[%emt 0:00:47]} 28. Rh2 {[%emt 0:04:00]} Nf5 {[%emt 0:02:52]} 29. Qf4 {[%emt 0:00:13]} Rch8 {[%emt 0:00:56]} 30. Rdh1 {[%emt 0:00:21]} f6 {[%emt 0:05:05]} 31. Bd3 {[%emt 0:02:00]} Rh5 {[%emt 0:00:14]} 32. Be2 {[%emt 0:00:47]} R5h6 {[%emt 0:02:09]} 33. Bd3 {[%emt 0:00:12]} Qb8 {[%emt 0:01:48]} 34. Ka1 {[%emt 0:00:21]} Rh5 {[%emt 0:00:20]} 35. Be2 {[%emt 0:01:02]} R5h7 {[%emt 0:00:32]} 36. Bd3 {[%emt 0:00:20]} Rh6 {[%emt 0:00:34]} 37. Bxf5 {[%emt 0:00:24]} Bxf5 {[%emt 0:00:33]} 38. h5 {[%emt 0:00:56]} Be4 {[%emt 0:01:16]} 39. e6+ {[%emt 0:00:15]} Kc6 {[%emt 0:00:44]} 40. Qxb8 {[%emt 0:00:30]} Rxb8 {[%emt 0:00:03]} 41. hxg6 {[%emt 0:31:00]} Rxg6 {[%emt 0:03:51]} 42. Rh8 {[%emt 0:00:00]} Rbg8 {[%emt 0:05:51]} 43. Rxg8 {[%emt 0:00:00]} Rxg8 {[%emt 0:00:06]} 44. Rh6 {[%emt 0:00:00]} Bg6 {[%emt 0:08:18]} 45. Bxf6 {[%emt 0:00:00]} Bf5 {[%emt 0:01:54]} 46. Bd4 {[%emt 0:00:00]} Rg6 {[%emt 0:03:36]} 47. e7 {[%emt 0:00:00]} Kd7 {[%emt 0:00:33]} 48. Rh5 {[%emt 0:00:00]} Be6 {[%emt 0:01:52]} 49. Bc5 {[%emt 0:00:00]} Bf7 {[%emt 0:04:33]} 50. Rh8 {[%emt 0:02:40]} Rg8 {[%emt 0:00:30]} 51. Rh7 {[%emt 0:00:53]} Be8 {[%emt 0:00:51]} 52. b3 {[%emt 0:01:08]} Rg2 {[%emt 0:00:52]} 53. Rh6 {[%emt 0:00:45]} Rg6 {[%emt 0:00:14]} 54. Rh2 {[%emt 0:00:05]} Kc6 {[%emt 0:00:42]} 55. Bb4 {[%emt 0:01:13]} Rg8 {[%emt 0:01:54]} 56. Kb2 {[%emt 0:00:35]} Rg6 {[%emt 0:00:41]} 57. Kc2 {[%emt 0:00:37]} Rg3 {[%emt 0:02:48]} 58. Rf2 {[%emt 0:00:31]} Rg6 {[%emt 0:00:51]} 59. Kd3 {[%emt 0:00:14]} Rg3+ {[%emt 0:00:54]} 60. Kd4 {[%emt 0:00:33]} Rg4+ {[%emt 0:00:16]} 61. Ke5 {[%emt 0:00:30]} Rg5+ {[%emt 0:00:17]} 62. Kf4 {[%emt 0:00:41]} Rg7 {[%emt 0:00:42]} 63. Re2 {[%emt 0:00:30]} Rg6 {[%emt 0:00:43]} 64. Kf5 {[%emt 0:00:19]} Rh6 {[%emt 0:00:17]} 65. Rf2 {[%emt 0:00:37]} Kd7 {[%emt 0:00:49]} 66. Ke5 {[%emt 0:00:28]} Rh5+ {[%emt 0:00:26]} 67. Kd4 {[%emt 0:00:13]} Rh6 {[%emt 0:00:44]} 68. Kxd5 {[%emt 0:00:13]} Rh5+ {[%emt 0:00:03]} 69. Kd4 {[%emt 0:00:11]} Rh6 {[%emt 0:00:51]} 70. Kd3 {[%emt 0:01:17]} Bg6+ {[%emt 0:00:17]} 71. Kd4 {[%emt 0:00:17]} Be8 {[%emt 0:00:04]} 72. Rd2 {[%emt 0:00:09]} Kc6 {[%emt 0:01:09]} 73. Ke5 {[%emt 0:00:22]} Bd7 {[%emt 0:00:21]} 74. Rd1 {[%emt 0:01:31]} Re6+ {[%emt 0:00:10]} 75. Kf4 {[%emt 0:00:16]} Rg6 {[%emt 0:00:24]} 76. Re1 {[%emt 0:00:24]} Be8 {[%emt 0:00:11]} 77. Kf5 {[%emt 0:00:35]} Rh6 {[%emt 0:00:32]} 78. c4 {[%emt 0:00:46]} bxc4 {[%emt 0:00:11]} 79. bxc4 {[%emt 0:00:04]} Kc7 {[%emt 0:00:44]} 80. c5 {[%emt 0:01:00]} Kc6 {[%emt 0:00:27]} 81. Rd1 {[%emt 0:00:26]} Bd7+ {[%emt 0:00:14]} 82. Kg5 {[%emt 0:00:14]} Re6 {[%emt 0:00:06]} 83. Rd6+ {[%emt 0:00:13]} Rxd6 {[%emt 0:00:26]} 84. cxd6 {[%emt 0:00:03]} Be8 {[%emt 0:00:13]} 85. Kf6 {[%emt 0:00:42]} Kd7 {[%emt 0:00:17]} 86. Ke5 {[%emt 0:01:11]} Bf7 {[%emt 0:00:19]} 87. a4 {[%emt 0:00:13]} Bh5 {[%emt 0:01:03]} 88. Kd5 {[%emt 0:00:35]} Bg6 {[%emt 0:00:39]} 1/2-1/2